bitfinex-derivatives/quotes_SOLF0:USTF0_20241211
["timestamp","ask_amount","ask_price","bid_price","bid_amount"]
[1733905804447,1.3493,221.44,221.32,2.16]
[1733905804448,6.89941776,221.43,221.37,6.89941776]
[1733905804636,6.89941776,221.43,221.38,2.16]
[1733905804833,1.3493,221.44,221.41,2.2574]
[1733905805037,1.3493,221.44,221.39,6.89941776]
[1733905805444,6.89941776,221.43,221.38,2.16]
[1733905806242,6.89941776,221.41,221.33,2.2581]
[1733905806443,6.89941776,221.41,221.35,6.89941776]
[1733905806643,1.3493,221.44,221.39,6.89941776]
[1733905806847,6.89941776,221.45,221.4,2.16]
[1733905807445,6.89941776,221.45,221.41,2.2573]
[1733905808250,6.89941776,221.44,221.4,2.16]
[1733905808642,6.89941776,221.42,221.37,2.2577]
[1733905808851,6.89941776,221.42,221.38,2.16]
[1733905809450,6.89941776,221.42,221.35,2.258]
[1733905809650,9.15691776,221.4,221.36,2.16]
[1733905809852,6.89941776,221.4,221.36,2.16]
[1733905810252,6.89941776,221.42,221.36,2.16]
[1733905810753,6.89941776,221.42,221.37,2.2578]
[1733905810953,9.15681776,221.42,221.36,2.16]
[1733905811253,1.3975,221.47,221.36,2.16]
[1733905811254,9.35047238,221.41,221.36,2.16]
[1733905811551,6.89941776,221.4,221.36,2.16]
[1733905812052,6.89941776,221.38,221.29,4.4186]
[1733905812247,6.89941776,221.38,221.28,6.89941776]
[1733905812248,28.75021049,221.37,221.22,6.89941776]
[1733905812447,6.89941776,221.33,221.26,6.89941776]
[1733905812652,6.89941776,221.33,221.27,2.16]
[1733905812844,9.15771776,221.33,221.27,2.16]
[1733905813045,6.89941776,221.31,221.27,2.16]
[1733905813956,6.89941776,221.33,221.27,2.16]
[1733905814153,6.89941776,221.33,221.28,2.2587]
[1733905814557,6.89941776,221.35,221.29,2.2586]
[1733905814745,9.35394506,221.34,221.29,2.2586]
[1733905814949,6.89941776,221.35,221.29,2.2586]
[1733905815151,11.61212463,221.34,221.28,6.89941776]
[1733905815450,2.2581,221.34,221.28,6.89941776]
[1733905815859,6.89941776,221.33,221.27,4.4188]
[1733905816056,6.89941776,221.33,221.22,5.40515608]
[1733905816249,6.89941776,221.33,221.27,6.89941776]
[1733905816449,6.89941776,221.33,221.28,2.16]
[1733905817150,6.89941776,221.31,221.28,2.16]
[1733905818251,6.89941776,221.29,221.22,5.40515608]
[1733905818449,6.89941776,221.29,221.23,2.16]
[1733905818662,6.89941776,221.27,221.24,2.16]
[1733905818854,6.89941776,221.25,221.13,1.3382]
[1733905819156,6.89941776,221.25,221.17,6.89941776]
[1733905819450,6.89941776,221.21,221.14,2.16]
[1733905819656,6.89941776,221.19,221.14,2.16]
[1733905820054,6.89941776,221.21,221.14,2.16]
[1733905820250,1.3351,221.23,221.15,6.89941776]
[1733905820461,8.23451776,221.23,221.15,6.89941776]
[1733905820654,1.4141,221.3,221.14,2.16]
[1733905820655,1.4141,221.3,221.19,6.89941776]
[1733905820851,6.89941776,221.28,221.21,6.89941776]
[1733905821353,1.3351,221.29,221.22,2.2593]
[1733905821554,8.23451776,221.29,221.22,2.2593]
[1733905821748,10.49321776,221.29,221.21,6.89941776]
[1733905821955,8.23451776,221.29,221.21,6.89941776]
[1733905822352,1.3351,221.29,221.23,6.89941776]
[1733905823056,1.3351,221.29,221.25,2.259]
[1733905823661,1.3351,221.29,221.26,2.2589]
[1733905824358,1.3351,221.29,221.23,9.15861776]
[1733905824560,1.3351,221.29,221.23,6.89941776]
[1733905824961,3.5938,221.29,221.23,9.15861776]
[1733905825258,1.3351,221.29,221.23,9.15861776]
[1733905825959,3.5938,221.29,221.2,2.16]
[1733905826157,1.3351,221.29,221.22,6.89941776]
[1733905827662,8.23451776,221.29,221.22,6.89941776]
[1733905828762,6.89941776,221.25,221.2,2.16]
[1733905829162,1.3351,221.29,221.21,6.89941776]
[1733905829362,6.89941776,221.27,221.21,6.89941776]
[1733905829761,9.15831776,221.27,221.21,6.89941776]
[1733905829962,6.89941776,221.25,221.2,2.16]
[1733905830360,1.3351,221.29,221.17,2.16]
[1733905830361,6.89941776,221.23,221.17,2.16]
[1733905830553,6.89941776,221.23,221.17,9.05941776]
[1733905831561,6.89941776,221.23,221.18,2.2598]
[1733905831961,6.89941776,221.25,221.17,9.05941776]
[1733905832165,1.3589,221.28,221.21,6.89941776]
[1733905832363,8.25831776,221.28,221.21,6.89941776]
[1733905832559,1.3351,221.29,221.25,6.89941776]
[1733905832867,6.89941776,221.35,221.27,6.89941776]
[1733905833661,9.15751776,221.35,221.29,2.2586]
[1733905834264,6.89941776,221.33,221.29,2.2586]
[1733905834464,6.89941776,221.31,221.26,2.16]
[1733905835269,10.783606,221.35,221.26,2.16]
[1733905835670,10.783606,221.35,221.27,2.2588]
[1733905835867,10.783606,221.35,221.26,2.16]
[1733905836373,2.2584,221.32,221.26,4.4189]
[1733905836768,10.783606,221.35,221.26,2.16]
[1733905836965,2.2584,221.31,221.26,2.16]
[1733905837863,2.2583,221.32,221.26,4.4189]
[1733905839364,10.783606,221.35,221.26,4.4189]
[1733905839567,2.2584,221.32,221.26,4.4189]
[1733905840269,10.783606,221.35,221.26,2.16]
[1733905840465,2.2581,221.34,221.26,2.16]
[1733905840665,10.783606,221.35,221.26,2.16]
[1733905840870,1.4081,221.33,221.28,2.2587]
[1733905841568,2.2583,221.32,221.28,2.2587]
[1733905843567,1.4081,221.33,221.26,2.16]
[1733905846075,2.2572,221.44,221.35,2.258]
[1733905846271,2.8388,221.44,221.35,2.258]
[1733905846467,2.8388,221.44,221.34,2.16]
[1733905846780,13.622406,221.44,221.34,2.16]
[1733905847374,2.2573,221.42,221.37,2.2577]
[1733905847675,2.2573,221.42,221.34,2.16]
[1733905848067,2.8388,221.44,221.41,2.2574]
[1733905848268,2.8388,221.44,221.39,2.16]
[1733905848467,1.3792,221.47,221.4,2.16]
[1733905848671,9.32331499,221.46,221.4,2.16]
[1733905848974,10.783606,221.5,221.4,2.16]
[1733905849176,23.49028648,221.49,221.4,2.16]
[1733905849380,9.32302363,221.48,221.4,2.16]
[1733905849774,9.32302363,221.48,221.43,2.2571]
[1733905852278,9.32302363,221.48,221.4,2.16]
[1733905852279,9.32302363,221.48,221.45,2.257]
[1733905852478,9.32302363,221.48,221.4,2.16]
[1733905852681,2.25743825,221.49,221.41,2.16]
[1733905852977,2.25743825,221.49,221.43,10.783606]
[1733905853174,2.25743825,221.49,221.48,2.2567]
[1733905853476,2.25743825,221.49,221.48,4.4167]
[1733905855378,2.25743825,221.49,221.47,2.16]
[1733905855979,2.25743825,221.49,221.47,4.4168]
[1733905857178,2.25743825,221.49,221.47,2.16]
[1733905858378,2.2565,221.5,221.47,2.16]
[1733905858579,10.783606,221.53,221.44,2.16]
[1733905859882,2.2566,221.49,221.43,2.16]
[1733905860180,10.783606,221.53,221.43,2.16]
[1733905860371,2.2568,221.48,221.43,2.16]
[1733905861974,2.2569,221.47,221.37,10.783606]
[1733905862281,13.665606,221.47,221.38,2.16]
[1733905862984,2.882,221.47,221.38,2.16]
[1733905864883,2.882,221.47,221.4,10.783606]
[1733905865080,2.2564,221.52,221.4,10.783606]
[1733905865280,4.5094,221.68,221.43,10.783606]
[1733905865281,10.783606,221.56,221.43,10.783606]
[1733905865478,10.783606,221.56,221.44,2.16]
[1733905866378,2.256,221.55,221.5,2.2565]
[1733905866578,14.974606,221.59,221.5,2.16]
[1733905867078,2.8468,221.59,221.54,2.256]
[1733905867279,2.16,221.7,221.55,2.16]
[1733905867486,9.27973322,221.69,221.56,2.16]
[1733905867781,10.783606,221.66,221.57,2.16]
[1733905868079,10.783606,221.63,221.57,2.16]
[1733905868285,1.4465,221.62,221.57,2.16]
[1733905868484,13.641206,221.62,221.53,2.16]
[1733905868787,13.641206,221.62,221.52,2.16]
[1733905870282,10.783606,221.59,221.52,2.16]
[1733905870783,2.2556,221.59,221.53,2.2562]
[1733905870983,2.2556,221.59,221.52,2.16]
[1733905871184,13.641206,221.62,221.52,2.16]
[1733905871878,13.641206,221.62,221.57,2.2558]
[1733905871879,2.8576,221.62,221.57,2.2558]
[1733905873687,5.1129,221.62,221.57,2.2558]
[1733905873987,2.8576,221.62,221.58,2.2556]
[1733905874586,13.641206,221.62,221.55,2.256]
[1733905874786,13.641206,221.62,221.52,2.16]
[1733905874988,2.2555,221.6,221.52,2.16]
[1733905875691,15.896606,221.62,221.56,2.2559]
[1733905875887,13.641206,221.62,221.52,2.16]
[1733905876990,5.1129,221.62,221.56,2.2559]
[1733905877191,2.8576,221.62,221.57,2.18]
[1733905877389,2.8576,221.62,221.51,10.783606]
[1733905877390,2.8576,221.62,221.58,2.18]
[1733905877587,2.8576,221.62,221.58,4.4356]
[1733905877787,2.8576,221.62,221.58,2.18]
[1733905878796,2.8576,221.62,221.59,2.2556]
[1733905880592,2.8576,221.62,221.58,4.4357]
[1733905881093,12.129406,221.65,221.58,2.18]
[1733905881094,10.783606,221.65,221.58,2.18]
[1733905881299,13.038706,221.65,221.6,2.2555]
[1733905881997,10.783606,221.65,221.58,2.18]
[1733905882392,2.2552,221.63,221.58,4.4357]
[1733905882593,10.783606,221.65,221.58,4.4357]
[1733905882795,10.783606,221.65,221.58,2.18]
[1733905884100,2.2551,221.64,221.6,2.2555]
[1733905885200,10.783606,221.68,221.58,2.18]
[1733905885498,2.7581,221.7,221.58,2.18]
[1733905885900,10.783606,221.68,221.58,2.18]
[1733905887202,2.7581,221.7,221.58,2.18]
[1733905887503,10.783606,221.68,221.58,2.18]
[1733905888703,2.2548,221.67,221.58,2.18]
[1733905889203,2.2548,221.67,221.62,2.2552]
[1733905889397,2.2548,221.67,221.58,2.18]
[1733905889398,2.2546,221.69,221.58,12.963606]
[1733905889894,2.2546,221.69,221.64,2.255]
[1733905890100,2.2548,221.67,221.65,2.18]
[1733905890300,2.7581,221.7,221.63,4.4352]
[1733905891098,5.0127,221.7,221.63,2.18]
[1733905891906,5.0127,221.7,221.65,2.2549]
[1733905892307,2.2547,221.69,221.65,2.2549]
[1733905892807,2.7581,221.7,221.63,2.18]
[1733905893003,188.68120136,221.87,221.63,2.18]
[1733905893004,12.225806,221.75,221.63,2.18]
[1733905893306,2.2542,221.73,221.63,2.18]
[1733905893508,2.2542,221.73,221.64,10.783606]
[1733905893706,2.2542,221.73,221.63,2.18]
[1733905893907,2.2542,221.73,221.66,2.2549]
[1733905894108,2.2542,221.73,221.63,2.18]
[1733905894407,13.037706,221.74,221.63,2.18]
[1733905894801,2.2543,221.72,221.66,2.2548]
[1733905896800,2.2543,221.72,221.63,2.18]
[1733905897003,2.2542,221.73,221.63,2.18]
[1733905897408,2.2542,221.73,221.67,2.2547]
[1733905897900,10.783606,221.74,221.66,2.2548]
[1733905898207,10.783606,221.74,221.63,2.18]
[1733905898608,2.2544,221.72,221.65,2.2549]
[1733905899211,6.87743048,221.71,221.64,6.87743048]
[1733905899407,6.87743048,221.71,221.67,2.2548]
[1733905899910,6.87743048,221.71,221.64,6.87743048]
[1733905900511,6.87743048,221.71,221.67,2.2548]
[1733905901008,1.4422,221.75,221.64,6.87743048]
[1733905901210,6.87743048,221.72,221.65,2.18]
[1733905901910,6.87743048,221.72,221.65,9.05743048]
[1733905902304,6.87743048,221.72,221.68,2.2547]
[1733905902702,6.87743048,221.7,221.61,5.53117697]
[1733905902905,6.87743048,221.64,221.51,1.4241]
[1733905903111,6.87743048,221.64,221.53,2.18]
[1733905903412,6.87743048,221.64,221.6,2.2555]
[1733905904611,6.87743048,221.71,221.63,6.87743048]
[1733905904913,6.87743048,221.73,221.67,6.87743048]
[1733905905111,6.87743048,221.73,221.68,2.26]
[1733905905311,9.13163048,221.73,221.68,4.5146]
[1733905906014,9.13163048,221.73,221.68,2.26]
[1733905906214,10.57363048,221.75,221.68,2.26]
[1733905906515,9.29520591,221.74,221.68,2.26]
[1733905906712,2.2541,221.74,221.69,2.2546]
[1733905906917,9.29893229,221.73,221.69,2.2546]
[1733905907118,2.2541,221.74,221.69,2.2546]
[1733905907518,2.2543,221.72,221.68,2.26]
[1733905907719,2.2543,221.72,221.68,9.13743048]
[1733905908021,2.2541,221.74,221.69,2.2545]
[1733905908714,8.31963048,221.75,221.68,9.13743048]
[1733905908715,1.4422,221.75,221.68,9.13743048]
[1733905909020,9.55663048,221.78,221.7,6.87743048]
[1733905909219,9.31076485,221.77,221.7,6.87743048]
[1733905909415,9.55663048,221.78,221.72,6.87743048]
[1733905909416,9.31076485,221.76,221.72,6.87743048]
[1733905909615,9.55663048,221.78,221.72,6.87743048]
[1733905909812,9.31777901,221.77,221.73,2.26]
[1733905910015,1.35,221.78,221.74,6.87743048]
[1733905911015,1.4611,221.83,221.74,6.87743048]
[1733905911315,6.87743048,221.8,221.73,9.13743048]
[1733905911521,9.3203409,221.79,221.73,9.13743048]
[1733905912216,6.87743048,221.8,221.73,9.13743048]
[1733905912623,2.9297,221.83,221.73,9.13743048]
[1733905912824,6.87743048,221.8,221.73,9.13743048]
[1733905913621,2.2537,221.78,221.73,9.13743048]
[1733905914016,6.87743048,221.76,221.71,2.26]
[1733905914223,2.254,221.75,221.71,2.26]
[1733905914522,2.254,221.75,221.7,6.87743048]
[1733905914923,2.2541,221.74,221.7,6.87743048]
[1733905915117,6.87743048,221.76,221.69,2.26]
[1733905915421,2.2542,221.73,221.69,2.26]
[1733905917622,3.7149,221.75,221.7,9.13183048]
[1733905918027,1.4609,221.75,221.69,2.26]
[1733905918221,8.33833048,221.75,221.69,2.26]
[1733905919019,8.33833048,221.75,221.68,6.87743048]
[1733905919420,2.2544,221.71,221.67,2.26]
[1733905920020,6.87743048,221.71,221.67,2.26]
[1733905920225,6.87743048,221.71,221.64,6.87743048]
[1733905920425,6.87743048,221.71,221.64,9.13743048]
[1733905921130,2.2548,221.67,221.64,9.13743048]
[1733905921625,2.8581,221.74,221.66,6.87743048]
[1733905921821,1.4609,221.75,221.72,9.13173048]
[1733905922128,1.4609,221.75,221.72,6.87743048]
[1733905922323,2.2536,221.79,221.74,6.87743048]
[1733905922524,9.3307333,221.78,221.74,6.87743048]
[1733905922727,9.3307333,221.77,221.74,6.87743048]
[1733905922924,9.66993048,221.81,221.74,6.87743048]
[1733905923124,9.32992155,221.8,221.74,6.87743048]
[1733905923325,9.66993048,221.81,221.74,6.87743048]
[1733905923326,9.32992155,221.79,221.74,6.87743048]
[1733905923532,9.32992155,221.78,221.74,6.87743048]
[1733905923928,11.92333048,221.81,221.74,6.87743048]
[1733905924125,9.32914781,221.8,221.75,2.2539]
[1733905924324,11.92333048,221.81,221.75,2.2539]
[1733905924522,9.32777088,221.8,221.75,2.2539]
[1733905924723,9.32777088,221.79,221.74,6.87743048]
[1733905925030,6.87743048,221.82,221.75,4.5139]
[1733905925228,1.4069,221.89,221.75,4.5139]
[1733905925229,9.32773474,221.81,221.75,4.5139]
[1733905925431,9.32773474,221.8,221.75,4.5139]
[1733905925630,10.73715627,221.84,221.76,2.2538]
[1733905925834,21.24182543,221.83,221.76,2.2538]
[1733905926029,9.32712378,221.82,221.76,2.2538]
[1733905926232,9.32712378,221.81,221.76,2.2538]
[1733905926531,9.32712378,221.8,221.76,2.2538]
[1733905926733,10.73715627,221.84,221.76,2.2538]
[1733905926924,21.24063103,221.83,221.77,2.2537]
[1733905927124,9.32659921,221.82,221.77,2.2537]
[1733905927332,9.32659921,221.81,221.77,2.2537]
[1733905927523,10.73715627,221.87,221.77,2.2537]
[1733905927728,28.66524426,221.86,221.77,2.2537]
[1733905927933,28.66524426,221.85,221.77,2.2537]
[1733905928134,28.66524426,221.84,221.77,2.2537]
[1733905928332,21.23973527,221.83,221.77,2.2537]
[1733905928533,9.32620692,221.82,221.75,4.5139]
[1733905928730,9.32620692,221.81,221.75,4.5139]
[1733905928932,9.32620692,221.8,221.75,4.5139]
[1733905929133,9.32631794,221.79,221.75,4.5139]
[1733905929330,9.32761154,221.78,221.75,2.26]
[1733905929534,1.4306,221.83,221.75,2.26]
[1733905929836,28.67039814,221.82,221.75,2.26]
[1733905930035,21.2432754,221.81,221.75,2.26]
[1733905930236,11.58125077,221.8,221.75,4.5139]
[1733905930437,9.32775077,221.79,221.75,2.26]
[1733905930734,2.2535,221.8,221.75,2.26]
[1733905930935,9.32887541,221.79,221.75,2.26]
[1733905931137,1.3957,221.81,221.75,2.26]
[1733905931436,9.32787567,221.8,221.75,2.26]
[1733905931629,1.3957,221.81,221.75,2.26]
[1733905931832,9.32837198,221.8,221.75,2.26]
[1733905932033,1.3957,221.81,221.75,2.26]
[1733905932236,9.32836757,221.8,221.77,2.2537]
[1733905932534,1.3957,221.81,221.77,2.2537]
[1733905932738,9.32825273,221.8,221.77,2.2537]
[1733905933037,1.3957,221.81,221.77,2.2537]
[1733905933233,9.32836702,221.8,221.77,2.2537]
[1733905933426,3.649,221.81,221.77,2.2537]
[1733905933629,9.3285666,221.8,221.77,2.2537]
[1733905933828,1.3957,221.81,221.66,2.7952]
[1733905934030,2.254,221.75,221.67,2.24]
[1733905934233,10.73715627,221.78,221.67,2.24]
[1733905934430,2.254,221.75,221.68,2.2546]
[1733905934735,9.33154071,221.74,221.68,2.2546]
[1733905934936,9.33154071,221.73,221.68,2.2546]
[1733905935235,10.73715627,221.76,221.69,2.2545]
[1733905935441,9.33267773,221.75,221.69,2.2545]
[1733905935641,10.73715627,221.76,221.69,2.2545]
[1733905935843,2.2541,221.74,221.69,2.2545]
[1733905936544,2.2542,221.73,221.69,2.2545]
[1733905936742,10.73715627,221.79,221.71,2.2543]
[1733905936934,21.25740817,221.78,221.71,2.2543]
[1733905937242,9.3339456,221.77,221.71,2.2543]
[1733905937437,9.3339456,221.76,221.71,2.2543]
[1733905937638,10.73715627,221.79,221.71,2.2543]
[1733905937942,9.33520173,221.78,221.71,2.2543]
[1733905938141,9.33520173,221.77,221.71,2.2543]
[1733905938339,9.33520173,221.76,221.71,2.2543]
[1733905938542,10.73715627,221.79,221.71,2.2543]
[1733905938839,9.33612676,221.78,221.68,12.97715627]
[1733905939042,3.6357,221.81,221.68,12.97715627]
[1733905939043,3.6491,221.81,221.68,12.97715627]
[1733905939249,9.33503557,221.8,221.68,12.97715627]
[1733905939443,3.6491,221.81,221.68,12.97715627]
[1733905939643,9.33451976,221.8,221.68,12.97715627]
[1733905939846,3.6491,221.81,221.68,12.97715627]
[1733905940041,2.2535,221.8,221.68,12.97715627]
[1733905940440,2.2535,221.8,221.74,2.254]
[1733905940645,2.2535,221.8,221.75,2.24]
[1733905941346,3.649,221.81,221.75,2.24]
[1733905941845,3.649,221.81,221.77,2.2537]
[1733905942044,1.3957,221.81,221.77,2.2537]
[1733905942843,3.6491,221.81,221.76,2.2538]
[1733905943746,10.73715627,221.88,221.8,2.2534]
[1733905943945,28.6868944,221.87,221.8,2.2534]
[1733905944148,28.6868944,221.86,221.8,2.2534]
[1733905944449,31.99298744,221.85,221.79,2.24]
[1733905944645,2.2532,221.83,221.79,2.24]
[1733905945147,7.43062904,221.82,221.79,4.4935]
[1733905945349,2.2532,221.83,221.79,4.4935]
[1733905945745,10.73715627,221.85,221.79,2.24]
[1733905946050,28.68486448,221.84,221.79,2.24]
[1733905946250,28.68486448,221.83,221.77,2.24]
[1733905946450,28.68486448,221.82,221.77,2.24]
[1733905946651,28.68486448,221.81,221.77,2.24]
[1733905946845,10.73715627,221.85,221.77,2.24]
[1733905946846,28.68486448,221.8,221.77,2.24]
[1733905947147,21.2543659,221.79,221.77,2.24]
[1733905947347,9.33263578,221.78,221.77,2.24]
[1733905947541,7.4332517,221.78,221.71,2.2544]
[1733905947846,7.4332517,221.77,221.72,2.24]
[1733905948039,2.2541,221.74,221.7,4.4945]
[1733905948240,9.33263578,221.73,221.7,4.4945]
[1733905948443,9.33263578,221.73,221.7,2.24]
[1733905948643,1.3628,221.78,221.72,2.2543]
[1733905948851,28.70722427,221.77,221.7,2.24]
[1733905949047,21.26999589,221.76,221.7,2.24]
[1733905949251,21.26999589,221.75,221.7,2.24]
[1733905949552,9.33947793,221.74,221.72,2.2542]
[1733905949853,9.33947793,221.73,221.72,2.2542]
[1733905950047,1.3628,221.78,221.71,2.2543]
[1733905950048,9.33947793,221.76,221.71,2.2543]
[1733905950249,28.71803208,221.75,221.7,2.24]
[1733905950455,28.71803208,221.74,221.7,2.24]
[1733905950659,21.27699965,221.73,221.68,2.2547]
[1733905950843,21.27699965,221.72,221.6,49.6081]
[1733905951050,21.27699965,221.71,221.63,5.39710798]
[1733905951354,21.27699965,221.7,221.63,2.2552]
[1733905951648,21.27699965,221.69,221.62,2.24]
[1733905951951,28.72126176,221.68,221.61,2.24]
[1733905952145,28.72126176,221.67,221.57,10.73715627]
[1733905952350,28.72091599,221.66,221.59,2.2556]
[1733905952553,21.27699965,221.65,221.58,2.24]
[1733905952753,1.3923,221.69,221.59,2.2556]
[1733905952955,16.79075753,221.68,221.58,2.24]
[1733905953153,16.79075753,221.67,221.58,2.24]
[1733905953453,1.3923,221.69,221.58,2.24]
[1733905953754,2.255,221.65,221.6,2.2555]
[1733905953945,1.3923,221.69,221.58,2.24]
[1733905954144,9.34292958,221.68,221.58,2.24]
[1733905954351,9.34292958,221.67,221.59,2.24]
[1733905954559,9.34292958,221.68,221.59,2.24]
[1733905954758,1.3923,221.69,221.59,2.24]
[1733905954759,9.34292958,221.67,221.59,2.24]
[1733905954957,9.34292958,221.66,221.59,2.24]
[1733905955156,1.3923,221.69,221.59,2.24]
[1733905955356,9.33860081,221.68,221.59,2.24]
[1733905955550,1.3923,221.69,221.59,2.24]
[1733905955854,9.33453725,221.68,221.59,2.24]
[1733905956056,1.3923,221.69,221.59,2.24]
[1733905956751,2.2549,221.66,221.6,2.2554]
[1733905956957,1.3923,221.69,221.59,2.24]
[1733905957155,9.33249115,221.68,221.59,2.24]
[1733905957348,1.3923,221.69,221.59,2.24]
[1733905957349,2.2552,221.63,221.59,2.24]
[1733905957656,1.3923,221.69,221.59,2.24]
[1733905957855,2.2552,221.64,221.59,4.4956]
[1733905958156,1.3923,221.69,221.57,2.24]
[1733905958451,2.2553,221.63,221.58,2.2557]
[1733905959750,2.2551,221.65,221.6,2.2555]
[1733905960661,2.2547,221.68,221.63,2.2552]
[1733905960957,1.3923,221.69,221.58,10.73715627]
[1733905961268,2.2549,221.66,221.62,2.2553]
[1733905961455,1.3923,221.69,221.58,10.73715627]
[1733905961661,9.31582309,221.68,221.58,10.73715627]
[1733905961955,1.3923,221.69,221.58,10.73715627]
[1733905962156,9.31581589,221.68,221.58,10.73715627]
[1733905962458,1.3923,221.69,221.59,2.2555]
[1733905962757,9.3137963,221.68,221.59,2.2555]
[1733905962959,9.3137963,221.67,221.58,2.2557]
[1733905963258,9.31229107,221.66,221.55,10.73715627]
[1733905963459,2.2555,221.61,221.52,10.73715627]
[1733905963655,10.73715627,221.64,221.49,10.73715627]
[1733905963852,10.73715627,221.58,221.5,2.28]
[1733905964553,10.73715627,221.55,221.46,38.85322832]
[1733905965155,2.2565,221.51,221.46,41.11012832]
[1733905965356,10.73715627,221.55,221.46,38.85322832]
[1733905965556,10.73715627,221.52,221.36,1.3594]
[1733905965756,10.73715627,221.49,221.39,2.2575]
[1733905965955,2.8477,221.48,221.39,2.2575]
[1733905966155,2.8477,221.48,221.37,2.28]
[1733905966461,10.73715627,221.46,221.37,2.28]
[1733905967157,2.8477,221.48,221.37,2.28]
[1733905967359,2.8477,221.48,221.4,2.2575]
[1733905967657,10.73715627,221.55,221.4,10.73715627]
[1733905967858,11.53185777,221.54,221.4,10.73715627]
[1733905968057,2.25692877,221.54,221.4,10.73715627]
[1733905968253,10.73715627,221.52,221.37,13.01715627]
[1733905968456,2.2568,221.47,221.41,2.2574]
[1733905968651,10.73715627,221.52,221.37,13.01715627]
[1733905968960,2.25723443,221.51,221.4,10.73715627]
[1733905969556,2.2566,221.49,221.42,2.2573]
[1733905969752,2.25723443,221.51,221.43,2.28]
[1733905969953,2.25723443,221.51,221.41,2.28]
[1733905970257,1.4251,221.5,221.41,2.28]
[1733905970455,2.25743825,221.49,221.41,2.28]
[1733905970657,3.70513825,221.49,221.41,2.28]
[1733905972352,3.70513825,221.49,221.43,2.2572]
[1733905972551,3.70513825,221.49,221.41,2.28]
[1733905972860,3.70513825,221.49,221.4,10.73715627]
[1733905973060,3.70513825,221.49,221.42,2.28]
[1733905973560,2.2569,221.47,221.42,2.28]
[1733905974558,3.70513825,221.49,221.42,2.28]
[1733905974763,2.2568,221.47,221.42,2.28]
[1733905974960,3.70513825,221.49,221.42,2.28]
[1733905975260,3.70513825,221.49,221.43,10.73715627]
[1733905975860,3.70513825,221.49,221.44,2.257]
[1733905976055,3.70513825,221.49,221.43,10.73715627]
[1733905976860,3.70513825,221.49,221.43,12.99425627]
[1733905977564,3.70513825,221.49,221.42,2.28]
[1733905977965,2.2571,221.44,221.38,2.2577]
[1733905978169,10.73715627,221.47,221.33,2.28]
[1733905978364,1.4189,221.43,221.33,7.82108122]
[1733905978573,1.4189,221.43,221.34,2.28]
[1733905979778,2.2576,221.4,221.34,4.5381]
[1733905980070,1.4189,221.43,221.32,10.73715627]
[1733905980368,1.4189,221.43,221.33,4.5382]
[1733905980574,1.4189,221.43,221.33,2.28]
[1733905980777,1.4189,221.43,221.36,2.2579]
[1733905981273,1.4189,221.43,221.33,2.28]
[1733905981470,2.2574,221.41,221.34,2.258]
[1733905982075,2.2574,221.41,221.33,2.28]
[1733905982267,2.2574,221.41,221.35,2.258]
[1733905982470,1.4189,221.43,221.35,10.73715627]
[1733905982670,1.4492,221.46,221.39,2.2576]
[1733905983071,1.4625,221.48,221.38,2.28]
[1733905983468,2.25764211,221.47,221.41,2.2574]
[1733905983674,2.25764211,221.47,221.41,10.73715627]
[1733905984173,2.25764211,221.47,221.46,2.2569]
[1733905985776,5.4493084,221.59,221.45,2.28]
[1733905985972,2.2559,221.56,221.47,10.73715627]
[1733905986176,2.25652134,221.58,221.5,10.73715627]
[1733905986475,2.25652134,221.58,221.51,2.28]
[1733905987778,2.25652134,221.58,221.5,10.73715627]
[1733905987973,2.25652134,221.58,221.51,2.28]
[1733905988173,2.2559,221.56,221.51,2.28]
[1733905988576,13.54175627,221.61,221.51,2.28]